Cogmind - Beta 15 @@@ ROGUE MODE // 2025.07.09 @ 08:07:04 Player: Flufflewump Result: Destroyed by UJ-TFR(j) with Overtuned Pulse Rifle Performance ------------- Evolutions (0) 0 Regions Visited (3) 600 Robots Destroyed (6) 30 Value Destroyed (171) 171 Prototype IDs (0) 0 Alien Tech Used (0) 0 Bonus (800) 800 TOTAL SCORE: 1601 Bonus ------- Registered with UFD 300 Met Optimus in HQ 500 Cogmind --------- Core Integrity 0/250 Matter 300/300 Energy 31/100 System Corruption 0% Temperature Danger (400) Movement Core (150) Ox2 Location -9/Scraptown Parts ------- > --- POWER (1) -------- (None) > --- PROPULSION (2) --- Overtuned Titanium Leg > --- UTILITY (2) ------ Scrap Suit > --- WEAPON (2) ------- Salvaging Laser Overtuned Pulse Rifle > --- INVENTORY (5) ---- Overtuned Titanium Leg Overtuned Titanium Leg Salvaging Laser Large Botcube Peak State ------------ > --- POWER ------------ Light Deuterium Engine > --- PROPULSION ------- Overtuned Titanium Leg Overtuned Titanium Leg > --- UTILITY ---------- Scrap Suit > --- WEAPON ----------- Salvaging Laser Overtuned Pulse Rifle > --- INVENTORY -------- Overtuned Titanium Leg Overtuned Titanium Leg Salvaging Laser Large Botcube [Rating: 24] Favorites ----------- Power Subdweller Power Source Engine Subdweller Power Source Propulsion Aluminum Leg Leg Aluminum Leg Wheel Wheel Utility Subdweller Optics Device Subdweller Optics Storage High-capacity Storage Unit Weapon Light Assault Rifle Energy Gun Salvaging Laser Ballistic Gun Light Assault Rifle Special Weapon CPS Tube Build | -11 -10 -10 -9 ------- Run | Yrd Mat Sub Scr Slots Evolved . | . . . . Power . | . . . . Propulsion . | . . . . Utility . | . . . . Weapon . | . . . . Parts Attached 32 | 5 5 6 16 Power 5 | 1 2 1 1 Engine 5 | 1 2 1 1 Core . | . . . . Reactor . | . . . . Propulsion 14 | 2 1 2 9 Treads . | . . . . Leg 13 | 2 1 2 8 Wheel 1 | . . . 1 Hover . | . . . . Flight . | . . . . Utility 6 | . 2 2 2 Device 4 | . 1 2 1 Storage 2 | . 1 . 1 Processor . | . . . . Hackware . | . . . . Protection . | . . . . Artifact . | . . . . Weapon 7 | 2 . 1 4 Energy Gun 4 | . . 1 3 Energy Cannon . | . . . . Ballistic Gun 2 | 2 . . . Ballistic Cannon . | . . . . Launcher . | . . . . Special Weapon 1 | . . . 1 Impact Weapon . | . . . . Slashing Weapon . | . . . . Piercing Weapon . | . . . . Special Melee Weapon . | . . . . Unidentified Prototypes . | . . . . Parts Lost 3 | . . . 3 Power 1 | . . . 1 Propulsion 1 | . . . 1 Utility . | . . . . Weapon 1 | . . . 1 Highest Loss Streak 1 | . . . 1 To Critical Strikes . | . . . . Average Backups 5 | 1 4 5 5 Power . | . . 1 . Propulsion 1 | 1 2 2 1 Utility . | . . 1 1 Weapon 1 | . . 1 1 Tool/Special . | . . . . Unused Backups 11 | 2 2 . 7 Power . | . . . . Propulsion 5 | 1 2 . 2 Utility 3 | . . . 3 Weapon 2 | 1 . . 1 Tool/Special 1 | . . . 1 Average Slot Usage (%) 74 | . 80 83 72 Engine 13 | . 14 14 13 Leg 27 | . 28 28 26 Device 13 | . 10 15 14 Storage 10 | . . . 13 Energy Gun 2 | . . 3 3 Ballistic Gun 5 | . 27 21 . Peak Build Rating 24 | 5 7 9 24 Average Rating 8 | 3 5 6 9 On Entrance 5 | . 5 6 9 Naked Turns . | . . . . Heaviest Build 48 | 6 9 10 48 Greatest Support 39 | 20 20 20 39 Greatest Overweight (x) 6 | . . 2 6 Average Overweight (x) 1 | . . . 1 Largest Inventory Capacity 20 | 5 20 5 20 Average Capacity 15 | 5 5 5 18 Most Carried 10 | 4 5 5 10 Average Carried 6 | 2 4 5 6 Final Capacity 5 | 5 5 5 5 Final Carried 5 | 4 5 5 5 Class Distribution -------------------- 74% | Scavenger-Mutant 22% | Mutant 3% | Scavenger-Scrapper Dominant Class ---------------- Mutant | -10/Materials Mutant | -10/Subcaves Scavenger-Mutant | -9/Scraptown Resources | -11 -10 -10 -9 ----------- Run | Yrd Mat Sub Scr Matter Collected 753 | 282 112 94 265 Remotely 206 | . 112 94 . Salvage Created 205 | 33 102 . 70 Parts 12 | 3 6 . 3 Haulers Intercepted . | . . . . Recyclers Shooed . | . . . . Parts Field Recycled . | . . . . Retrieved Matter . | . . . . Parts Self-Destructed 8 | . . 8 . Prevented . | . . . . Kills | -11 -10 -10 -9 ------- Run | Yrd Mat Sub Scr Combat Hostiles Destroyed 6 | 1 4 . 1 Guns 6 | 1 4 . 1 Classes Destroyed 3 | 1 1 . 1 Swarmer 2 | . 2 . . Grunt 3 | 1 2 . . Scrapper 1 | . . . 1 Best Kill Streak 2 | 1 2 . 1 Combat Bots Only 2 | 1 2 . 1 Max Kills in Single Turn 1 | 1 1 . 1 Gunslinging . | . . . . Exploded . | . . . . Melee . | . . . . Uniques/NPCs Destroyed . | . . . . Combat | -11 -10 -10 -9 -------- Run | Yrd Mat Sub Scr Hostile Shots Fired 106 | 12 33 . 61 Missed 31 | 6 11 . 14 Hits 75 | 6 22 . 47 Projectile 75 | 6 22 . 47 Damage Taken 1171 | 65 195 . 911 Core 267 | 10 7 . 250 Absorbed by Shields . | . . . . Regen/Repaired (Parts) 1 | . . . 1 Core Remaining (%) 96 | 96 . . . Volleys Fired 40 | 8 19 . 13 Largest 2 | 2 2 . 2 Hottest 110 | 40 40 . 110 Shots Fired 74 | 16 38 . 20 Gun 73 | 16 38 . 19 Cannon . | . . . . Launcher . | . . . . Special 1 | . . . 1 Kinetic 54 | 16 38 . . Thermal 19 | . . . 19 Explosive . | . . . . Electromagnetic . | . . . . Robot Hit Streak 15 | 13 15 . 9 Robot Miss Streak 3 | 2 3 . 1 Penetration Max . | . . . . Secondary Targets 1 | . 1 . . Max Gunslinging Chain 1 | . 1 . . Shots Hit Robots 49 | 13 19 . 17 Core Hits 16 | 2 8 . 6 Critical Kills . | . . . . Critical Parts Destroyed 1 | . 1 . . Critical Strikes 1 | . 1 . . Destroy 1 | . 1 . . Melee Attacks . | . . . . Impact . | . . . . Slashing . | . . . . Piercing . | . . . . Sneak Attacks . | . . . . Combat Hostiles . | . . . . Follow-up Attacks . | . . . . Damage Inflicted 538 | 133 203 . 202 Guns 538 | 133 203 . 202 Cannons . | . . . . Explosions . | . . . . Melee . | . . . . Ramming . | . . . . Kinetic 336 | 133 203 . . Thermal 202 | . . . 202 Explosive . | . . . . Electromagnetic . | . . . . Impact . | . . . . Slashing . | . . . . Piercing . | . . . . Highest Corruption . | . . . . Average Corruption . | . . . . Corruption Purged . | . . . . Corruption Blocked . | . . . . Overload Shots . | . . . . Overflow Damage . | . . . . Projectiles . | . . . . Explosions . | . . . . Melee . | . . . . Knockbacks . | . . . . Impact . | . . . . Kinetic . | . . . . Secondary . | . . . . Self-Inflicted Damage . | . . . . Shots . | . . . . Rammed . | . . . . Targets Rammed . | . . . . Kicked . | . . . . Crushed . | . . . . Highest Temperature 388 | 6 6 . 388 Average Temperature 133 | 6 6 . 189 Received Heat Transfer 540 | 36 36 . 468 Effects 1 | . . . 1 Energy Bleed 1 | . . . 1 Siege Activations . | . . . . Martial Activations . | . . . . Shielding Activations . | . . . . Robots Disrupted . | . . . . Combat Hostiles . | . . . . Robots Corrupted . | . . . . Combat Hostiles . | . . . . Parts Fried . | . . . . Impact Corruptions . | . . . . Robots Melted . | . . . . Combat Hostiles . | . . . . Parts Melted 2 | . . . 2 Heat Transferred 421 | . . . 421 Parts Sabotaged . | . . . . Parts Stolen . | . . . . Parts Stripped . | . . . . Power Chain Reactions . | . . . . Alert | -11 -10 -10 -9 ------- Run | Yrd Mat Sub Scr Maximum Alert Level . | . . . . Low Security (%) 100 | 100 100 . . Level 1 . | . . . . Level 2 . | . . . . Level 3 . | . . . . Level 4 . | . . . . Level 5 . | . . . . High Security . | . . . . Max Security . | . . . . Peak Influence 50 | 20 50 . . Initial 13 | . 13 . . Average 5 | 2 6 . . Influence Increases 115 | 20 95 . . Destroy 0b10 Robot/C 100 | 20 80 . . Destroy Leader 10 | . 10 . . Successful Hack 5 | . 5 . . Influence Decreases 115 | . 115 . . Entered New Map 7 | . 7 . . Time Decay 108 | . 108 . . Squads Dispatched . | . . . . Investigation . | . . . . Extermination . | . . . . Reinforcement . | . . . . Assault . | . . . . Garrison . | . . . . Intercept . | . . . . Searches Triggered . | . . . . Construction Impeded . | . . . . Haulers Reinforced . | . . . . Active Scanning Responses . | . . . . Cargo Convoy Interrupts . | . . . . Stealth | -11 -10 -10 -9 --------- Run | Yrd Mat Sub Scr Distress Signals . | . . . . Communications Jammed . | . . . . Distress Signals . | . . . . Times Spotted 30 | 1 11 3 15 Peak Tracking Total 4 | 1 3 2 4 Tactical Retreats . | . . . . Traps | -11 -10 -10 -9 ------- Run | Yrd Mat Sub Scr Traps Triggered . | . . . . Indirectly . | . . . . Trap Hack Attempts . | . . . . Triggered . | . . . . Disarmed . | . . . . Reprogrammed . | . . . . Reused . | . . . . Traps Extracted . | . . . . Installed . | . . . . Triggered . | . . . . Machines | -11 -10 -10 -9 ---------- Run | Yrd Mat Sub Scr Machines Disabled . | . . . . Max in Single Turn . | . . . . Machines Repaired . | . . . . Machines Dismantled . | . . . . Machines Sabotaged . | . . . . Overloaded Fab Kills . | . . . . Hacking | -11 -10 -10 -9 --------- Run | Yrd Mat Sub Scr Machines Accessed 11 | . 3 . 8 Terminals 2 | . 2 . . Fabricators . | . . . . Repair Stations 1 | . 1 . . Recycling Units . | . . . . Scanalyzers . | . . . . Garrison Access . | . . . . Total Hacks 68 | . 14 . 54 Successful 61 | . 7 . 54 Failed 7 | . 7 . . Catastrophic . | . . . . Database Lockouts . | . . . . Manual 4 | . 3 . 1 Terminals 11 | . 11 . . Fabricators . | . . . . Repair Stations 3 | . 3 . . Recycling Units . | . . . . Scanalyzers . | . . . . Garrison Access . | . . . . Terminal Hacks 61 | . 7 . 54 Record 52 | . 1 . 51 Robot Analysis 3 | . . . 3 Recycling Unit Index 1 | . 1 . . Alert Level 1 | . 1 . . Locate Traps 1 | . 1 . . Hauler Manifests 2 | . 2 . . Zone Layout 1 | . 1 . . Fabricator Hacks . | . . . . Repair Station Hacks . | . . . . Recycling Unit Hacks . | . . . . Scanalyzer . | . . . . Garrison Access Hacks . | . . . . Unauthorized Hacks . | . . . . Terminals . | . . . . Fabricators . | . . . . Repair Stations . | . . . . Recycling Units . | . . . . Scanalyzers . | . . . . Garrison Access . | . . . . Data Cores Recovered . | . . . . Used . | . . . . Hacking Detections 3 | . 3 . . Full Trace Events . | . . . . Feedback Events . | . . . . Feedback Blocked . | . . . . Robot Schematics Acquired . | . . . . Robots Built . | . . . . Authchips . | . . . . Time . | . . . . Total Robot Build Rating . | . . . . Part Schematics Acquired . | . . . . Parts Built . | . . . . Authchips . | . . . . Time . | . . . . Total Part Build Rating . | . . . . Parts Repaired . | . . . . Time . | . . . . Parts Recycled . | . . . . Recycled Matter . | . . . . Retrieved Matter . | . . . . Retrieved Components . | . . . . Parts Scanalyzed . | . . . . Part Schematics Acquired . | . . . . Parts Damaged . | . . . . Bothacking | -11 -10 -10 -9 ------------ Run | Yrd Mat Sub Scr Used RIF Installer . | . . . . Robots Hacked . | . . . . Non-combat . | . . . . Combat . | . . . . Robot Hacks Applied . | . . . . Relay Couplers Released . | . . . . Fabnet Peak Effective % . | . . . . Robots Rewired . | . . . . Allies Hacked . | . . . . Hacks Repelled . | . . . . Allies | -11 -10 -10 -9 -------- Run | Yrd Mat Sub Scr Total Allies . | . . . . Largest Group . | . . . . Highest-Rated Group . | . . . . Highest-Rated Ally . | . . . . Total Orders . | . . . . Ally Attacks . | . . . . Total Damage . | . . . . Kills . | . . . . Allies Corrupted . | . . . . Allies Melted 7 | . . . 7 Intel | -11 -10 -10 -9 ------- Run | Yrd Mat Sub Scr Active Infowar (turns) 516 | . . 39 477 Optics 516 | . . 39 477 Robot Analysis Total 3 | . . . 3 Derelict Logs Recovered . | . . . . Drone Launches . | . . . . Drone Recoveries . | . . . . Exploration | -11 -10 -10 -9 ------------- Run | Yrd Mat Sub Scr Turns Passed 4671 | 118 678 224 3651 Spaces Moved 2233 | 78 445 143 1567 Core 24 | 20 . 1 3 Treads . | . . . . Legs 2117 | 58 445 142 1472 Wheels 92 | . . . 92 Hover . | . . . . Flight . | . . . . Fastest Speed 50 | 50 120 120 95 Average Speed 191 | 102 120 120 222 Slowest Speed 350 | 120 120 150 350 Overloaded Moves . | . . . . Propulsion Burnouts . | . . . . Robots Hopped . | . . . . Potential Cave-ins . | . . . . Cave-ins Triggered . | . . . . Exploration Rate (%) 38 | 6 55 9 83 Regions Visited 3 Branch Regions 2 Pre-discovered Areas . | . . . . Known Exits Taken . | . . . . Unknown Exits Taken 3 | 1 1 1 . Scrap Searched . | . . . . Spaces Dug . | . . . . Terrain Destroyed . | . . . . Melee . | . . . . Projectile . | . . . . AOE . | . . . . Terrain Rammed . | . . . . Walls Destroyed . | . . . . Machines Disabled . | . . . . Actions | -11 -10 -10 -9 --------- Run | Yrd Mat Sub Scr Total 2576 | 100 556 196 1724 Wait 193 | 2 75 42 74 Move 2230 | 77 444 142 1567 Hop . | . . . . Pick Up 18 | 6 2 . 10 Fast Attach 29 | 5 5 4 15 Attach 10 | . 1 . 9 Detach 16 | . 1 . 15 Swap 6 | . 2 2 2 Drop 34 | 2 7 6 19 Fire 40 | 8 19 . 13 Melee . | . . . . Ram . | . . . . Kick . | . . . . Crush . | . . . . Escape Stasis . | . . . . Rewire . | . . . . Trap . | . . . . Miscellaneous . | . . . . Route ------- -11/Scrapyard -10/Materials (discovered 3 exits: [*Mat] / [*Min] / [*Sub]) -10/Subcaves (discovered 2 exits: [*Mat] / *Scr) -9/Scraptown (discovered 1 exit: [*Fac]) History --------- Turn | Location | Event 2 | -11/Scrapyard | Met Revision 17 74 | -11/Scrapyard | Discovered new exit (range 8) 119 | -11/Scrapyard | Entered Materials 120 | -10/Materials | Met a group of wandering Federalists 212 | -10/Materials | Discovered new exit (range 7) 310 | -10/Materials | Build established: Mutant 639 | -10/Materials | Discovered new exit (range 15) 790 | -10/Materials | Discovered new exit (range 7) 797 | -10/Materials | Entered Subcaves 798 | -10/Subcaves | Continued accompanying wandering Federalists (5) 798 | -10/Subcaves | Approached by a straggling Scientist 819 | -10/Subcaves | Discovered new exit (range 14) 1011 | -10/Subcaves | Wandering Federalist uncovered a shortcut to Scraptown 1021 | -10/Subcaves | Entered Scraptown 1265 | -9/Scraptown | Build established: Scavenger-Mutant 1519 | -9/Scraptown | Visited Shadow of the Wyrm 1617 | -9/Scraptown | Visited Cyclists 1713 | -9/Scraptown | Visited Assassins FH 1809 | -9/Scraptown | Visited UFD Registry 1809 | -9/Scraptown | Registered with UFD as "Fluxrunner" 1903 | -9/Scraptown | Visited Comm Corps 2007 | -9/Scraptown | Visited Red Mages 3138 | -9/Scraptown | Visited Abandonware Association 3187 | -9/Scraptown | Learned abandonware demo "REPAIR.EXE" 3187 | -9/Scraptown | Learned abandonware demo "REBOOT5.EXE" 3252 | -9/Scraptown | Visited Junk Repository 3325 | -9/Scraptown | Visited Botcube Research 3343 | -9/Scraptown | Found Lrg. Botcube 3555 | -9/Scraptown | Discovered new exit (range 5) 3666 | -9/Scraptown | Visited Scrap Suit Storage 3726 | -9/Scraptown | Visited Analyses Database 3851 | -9/Scraptown | Met Optimus 3851 | -9/Scraptown | Accepted into 0bPrime 4081 | -9/Scraptown | Civil war broke out across Scraptown 4173 | -9/Scraptown | Visited Junk Repository 4237 | -9/Scraptown | Found Scrap Suit 4331 | -9/Scraptown | Optimus destroyed in the chaos of civil war 4655 | -9/Scraptown | Core integrity fell below 50% 4662 | -9/Scraptown | Core integrity fell below 20% 4672 | -9/Scraptown | Destroyed by UJ-TFR(j) with Overtuned Pulse Rifle Last Messages --------------- 04552_ Acquired 20 matter. 04579_ 80-RPK(g) suffers critical hit (Burn). 04582_ 80-RPK(g) heat damages Imp. Heat Sink. 04583_ 80-RPK(g) overheating. 04583_ 6T-7RI(j) destroyed. 04583_ 80-RPK(g) overheating. 04584_ 9X-OT1(j) heat spikes uncontrollably. 04584_ 80-RPK(g) heat spikes uncontrollably. 04585_ 80-RPK(g) overheating. 04585_ D3-QOA(g) destroyed. 04591_ 9X-OT1(j) cannibalizes Salvaging Laser to repair Ovr. Pulse Rifle. 04613_ U2-1KI(j) suffers critical hit (Burn). 04613_ U2-1KI(j) destroyed. 04615_ Lgt. Deuterium Engine destroyed. 04648_ 16-IOT(j) destroyed. 04655_ Ovr. Pulse Rifle melted. 04655_ Mak. Salvage Targeting Computer melted. 04655_ OM-JQB(j) destroyed. 04665_ Ovr. Titanium Leg destroyed. 04668_ Overheating: Energy bleed (-10). Map ----- +----------------------------------------------------+ | | | | | | | | | | | | | | | | | | | | | ?????????????????????????????????????????????????? | | ?????????????????????????????????????????????????? | | ?????????????????????????????????????????????????? | | ?????????????????????????????????????????????????? | | ?????????????????????????????????????????????????? | | ?????????????????????????????????????????????????? | | ?????????????????????????????????????????????????? | | ?????????????????????????????????????????????????? | | ?????????????????????????????????????????????????? | | ?????????????????????????????????????????????????? | | ?????????????????????????????????????????????????? | | ?????????????????????????????????????????????????? | | ?????????????????????????????????????????????###?? | | ???????????????????????###################???#!##? | | ??????????????????????#"""##"""##""|##"""#??##=%## | | ??????????????????????#""@##""!##"" ##!!"### /%%!# | | ??????????????????????#""=g! =[%!!!!!!%*= | | ??????????????????????# ![j=! !=%[*%!==!! | | ??????????????????????####################=##[=!%# | | ?????????????????????????????????????????####*!!## | | ???????????????????????????????????????????# #!=#? | | ???????????????????????????????????????????###*=#? | | ???????????###########???????????????????????# !#? | | ???????????#"""""""""#???????????????????????# #? | | ???????????# " " " #???????????????????????#%!## | | ???????????# #???????????????????????# #" | | ???????????# "# #" #??##?#####??#######"#### #" | | ???????????# "#X#" #??#/[#]!/#??#"""" ""# #" | | ???????????# "###" #??#!=# #?*#""" ""# #" | | ???????????# """"" #??#]/# # #"" " # " | | ???????????# #??# ?#""" "# ## | | ???????????# #???? ???# "# # | | ???????????##### #####?????# #????###### ##### ## | | ####???????##### ########### ######## # = #### !## | | #???????#"""" """"""""""" """" *%"""*=!!* | | #???????#" *%[ =!% %!%===%%[ | | #???????#" ! !== [%=!!! % = =% | | #???????#" !%= !== = !%[== | | #???????#" ! [%! !!!= ==% | | #????####" * =%= =!! | +----------------------------------------------------+ Best States ------------- Heat Dissipation 25 Energy Generation 15 Energy Capacity 250 Matter Stores 300 Matter Capacity 300 Sight Range 21 Terrain Scan Density 10 Evasion (%) 55 Item Schematics ----------------- None Robot Schematics ------------------ None Fabricated ------------ Nothing Repaired ---------- Nothing Alien Tech Used ----------------- None Achievements -------------- Armchair Analyst Use The Force Challenges ------------ None Game ------ Seed ImprovedRestorationSteel Manual? 0 Play Time 01:10:15 Cumulative 17.0 hours Start 2025.07.08 @ 13:39:31 End 2025.07.09 @ 08:07:04 Sessions 3 Manual Loads 0 Difficulty Rogue Special Mode None Game No. 19 Rogue 19 Adventurer 0 Explorer 0 Win Type - Total 0 Types 0/0/0/0/0/0/0/0/0/0 Lore% 19 Gallery% 23 Achievement% 23 Wizard Run 0 Options --------- Layout 0 ASCII 1 Keyboard 1 Movement Vi Keybinds 1 Fullscreen 1 Font 18/SmallcapsGlow Map View 76x50 Zoom Use 0% Tactical HUD 1 Map Filters NONE Filters NONE Steam 1 RUN: 92c58c4e-840f-4bb9-8d5f-ca9ad7a9d0ad